{"text_format":"1","workbook":"xlsx","n_sheets":1,"sheets":["Лист1"],"not_rendered":{"charts":0,"images":0,"macros":1,"external_links":0,"defined_names":0,"comments":0,"pivot_tables":0},"unopened":[],"bounds":{"document_bytes":16777216,"sheet_cells":100000,"rows_first":2000,"rows_last":500,"rows_between":2000,"halvings":0,"cell_chars":16384,"cell_head_chars":4096},"cells_cut":0,"cells_raw":0,"read":"whole","date_system":"1900"}

{"sheet":"Лист1","index":0,"n_rows":66,"n_cols":75,"rows_kept":66,"cut":false,"hidden":false,"merged":[[3,53,3,58],[5,53,5,58],[7,53,7,58],[5,50,6,50],[3,50,4,50],[9,53,9,58],[11,53,11,58],[7,50,8,50],[9,50,10,50],[11,50,12,50],[3,49,4,49],[5,49,6,49],[7,49,8,49],[9,49,10,49],[11,49,12,49]]}
[]
[]
[null,null,null,null,null,null,null,null,null,null,null,null,null,null,null,null,null,null,null,null,null,null,null,null,null,null,null,null,null,null,null,null,null,null,null,null,null,null,null,null,null,null,null,null,null,null,null,null,null,null,null,null,null,null,null,null,null,null,null,null,null,null,null,null,1,"Сегмент 1",0,0,0,0,0,0,0,0,0]
[null,1,"ааа",21.218457082191783,0,0,0,0,0,0,0,0,0,1027.18,0,0,0,"шаг",null,{"$f":"B4","v":1},{"$f":"C4","v":"ааа"},{"$f":"IFERROR(VLOOKUP(U4,#REF!,2,0),\"\")","v":""},{"$f":"D4","v":21.218457082191783},{"$f":"E4","v":0},{"$f":"F4","v":0},{"$f":"G4+N4+O4+P4+Q4","v":1027.18},{"$f":"H4","v":0},{"$f":"I4","v":0},{"$f":"J4","v":0},{"$f":"K4","v":0},{"$f":"L4","v":0},{"$f":"M4","v":0},null,null,null,null,null,null,null,null,null,null,null,null,null,null,null,null,{"$f":"AH7","v":1},{"$f":"AI7","v":"ааа"},{"$f":"AJ7","v":""},"Факт",{"$f":"IF(BA5>0,\"Реализовано\",\"Не реализовано\")","v":"Реализовано"},null,null,null,null,null,null,{"$f":"IF(BH5>0,\"Реализовано\",\"Не реализовано\")","v":"Не реализовано"},{"$f":"IF(BI5>0,\"Реализовано\",\"Не реализовано\")","v":"Не реализовано"},{"$f":"IF(BJ5>0,\"Реализовано\",\"Не реализовано\")","v":"Не реализовано"},null,null,2,"Сегмент 2",0,0,0,0,0,0,0,0,0]
[null,2,"ббб",3110.9939745281508,0,0,0,0,0,925,0,0,335.37,1027.18,0,0,0,2,null,{"$f":"B5","v":2},{"$f":"C5","v":"ббб"},"Сегмент 14",{"$f":"D5","v":3110.9939745281508},{"$f":"E5","v":0},{"$f":"F5","v":0},{"$f":"G5+N5+O5+P5+Q5","v":1027.18},0,0,925,0,0,335.37,null,null,null,null,null,null,null,null,null,null,null,null,null,null,null,null,null,null,null,"Доход",{"$f":"IF(AK7>0,AK7,0)","v":21.218457082191783},{"$f":"IF(AL8>0,AL8,$AU$2)","v":0},{"$f":"IF(AM8>0,AM8,$AU$2)","v":0},1027.18,0,0,0,{"$f":"IF(AR8>0,AR8,$AU$2)","v":0},{"$f":"IF(AS8>0,AS8,$AU$2)","v":0},0,null,null,3,"Сегмент 3",0,0,0,0,0,0,0,0,0]
[null,3,"ввв",14619.822932805409,0,0,0,0,0,22186.2,0,0,0,1967.18,0,0,0,null,null,3,"ввв","Сегмент 14",14619.822932805409,0,0,1967.18,0,0,22186.2,0,0,0,null,null,null,null,null,null,null,null,null,null,null,null,null,null,null,null,{"$f":"AH9","v":2},{"$f":"AI9","v":"ббб"},{"$f":"AJ9","v":"Сегмент 14"},"Факт",{"$f":"IF(BA7>0,\"Реализовано\",\"Не реализовано\")","v":"Реализовано"},null,null,null,null,null,null,{"$f":"IF(BH7>0,\"Реализовано\",\"Не реализовано\")","v":"Не реализовано"},{"$f":"IF(BI7>0,\"Реализовано\",\"Не реализовано\")","v":"Не реализовано"},{"$f":"IF(BJ7>0,\"Реализовано\",\"Не реализовано\")","v":"Реализовано"},null,null,4,"Сегмент 4",0,0,0,0,0,0,0,0,0]
[null,4,"ггг",6715.0181536581531,0,0,0,0,0,3480,0,0,0,4722.84,0,0,0,null,null,4,"ггг","Сегмент 14",6715.0181536581531,0,0,4722.84,0,0,3480,0,0,0,null,{"$f":"IF(MOD(ROW()-1,$R$5),\"\",IF(INDEX(T:T,(ROW()-1)/$R$5+1)=\"\",\"\",INDEX(B:B,(ROW()-1)/$R$5+1)))","v":1},{"$f":"IF(MOD(ROW()-1,$R$5),\"\",IF(INDEX(U:U,(ROW()-1)/$R$5+1)=\"\",\"\",INDEX(C:C,(ROW()-1)/$R$5+1)))","v":"ааа"},{"$f":"IF(MOD(ROW()-1,$R$5),\"\",IF(INDEX(V:V,(ROW()-1)/$R$5+1)=\"\",\"\",INDEX(V:V,(ROW()-1)/$R$5+1)))","v":""},{"$f":"IF(MOD(ROW()-1,$R$5),\"\",IF(INDEX(D:D,(ROW()-1)/$R$5+1)=\"\",\"\",INDEX(D:D,(ROW()-1)/$R$5+1)))","v":21.218457082191783},{"$f":"IF(MOD(ROW()-1,$R$5),\"\",IF(INDEX(E:E,(ROW()-1)/$R$5+1)=\"\",\"\",INDEX(E:E,(ROW()-1)/$R$5+1)))","v":0},{"$f":"IF(MOD(ROW()-1,$R$5),\"\",IF(INDEX(F:F,(ROW()-1)/$R$5+1)=\"\",\"\",INDEX(F:F,(ROW()-1)/$R$5+1)))","v":0},{"$f":"IF(MOD(ROW()-1,$R$5),\"\",IF(INDEX(Z:Z,(ROW()-1)/$R$5+1)=\"\",\"\",INDEX(Z:Z,(ROW()-1)/$R$5+1)))","v":1027.18},{"$f":"IF(MOD(ROW()-1,$R$5),\"\",IF(INDEX(H:H,(ROW()-1)/$R$5+1)=\"\",\"\",INDEX(H:H,(ROW()-1)/$R$5+1)))","v":0},{"$f":"IF(MOD(ROW()-1,$R$5),\"\",IF(INDEX(I:I,(ROW()-1)/$R$5+1)=\"\",\"\",INDEX(I:I,(ROW()-1)/$R$5+1)))","v":0},{"$f":"IF(MOD(ROW()-1,$R$5),\"\",IF(INDEX(J:J,(ROW()-1)/$R$5+1)=\"\",\"\",INDEX(J:J,(ROW()-1)/$R$5+1)))","v":0},{"$f":"IF(MOD(ROW()-1,$R$5),\"\",IF(INDEX(K:K,(ROW()-1)/$R$5+1)=\"\",\"\",INDEX(K:K,(ROW()-1)/$R$5+1)))","v":0},{"$f":"IF(MOD(ROW()-1,$R$5),\"\",IF(INDEX(L:L,(ROW()-1)/$R$5+1)=\"\",\"\",INDEX(L:L,(ROW()-1)/$R$5+1)))","v":0},{"$f":"IF(MOD(ROW()-1,$R$5),\"\",IF(INDEX(M:M,(ROW()-1)/$R$5+1)=\"\",\"\",INDEX(M:M,(ROW()-1)/$R$5+1)))","v":0},null,null,null,null,null,"Доход",{"$f":"IF(AK9>0,AK9,0)","v":3110.9939745281508},{"$f":"IF(AL10>0,AL10,$AU$2)","v":0},0,1027.18,0,0,925,0,0,335.37,null,null,5,"Сегмент 5",0,0,0,0,0,0,0,0,0]
[null,5,"ддд",42612.385727211171,0,0,0,0,0,2989.4,0,0,0,15348.03,0,0,0,null,null,5,"ддд","Сегмент 11",42612.385727211171,0,0,15348.03,0,0,2989.4,0,0,0,null,{"$f":"IF(MOD(ROW()-1,$R$5),\"\",IF(INDEX(T:T,(ROW()-1)/$R$5+1)=\"\",\"\",INDEX(B:B,(ROW()-1)/$R$5+1)))","v":""},{"$f":"IF(MOD(ROW()-1,$R$5),\"\",IF(INDEX(U:U,(ROW()-1)/$R$5+1)=\"\",\"\",INDEX(C:C,(ROW()-1)/$R$5+1)))","v":""},{"$f":"IF(MOD(ROW()-1,$R$5),\"\",IF(INDEX(V:V,(ROW()-1)/$R$5+1)=\"\",\"\",INDEX(V:V,(ROW()-1)/$R$5+1)))","v":""},{"$f":"AK7-AK7","v":0},{"$f":"AL7","v":0},{"$f":"AM7","v":0},{"$f":"AN7","v":1027.18},{"$f":"AO7","v":0},{"$f":"AP7","v":0},{"$f":"AC4","v":0},{"$f":"AR7","v":0},{"$f":"AS7","v":0},{"$f":"AT7","v":0},null,null,{"$f":"AH11","v":3},{"$f":"AI11","v":"ввв"},{"$f":"AJ11","v":"Сегмент 14"},"Факт",{"$f":"IF(BA9>0,\"Реализовано\",\"Не реализовано\")","v":"Реализовано"},null,null,null,null,null,null,{"$f":"IF(BH9>0,\"Реализовано\",\"Не реализовано\")","v":"Не реализовано"},{"$f":"IF(BI9>0,\"Реализовано\",\"Не реализовано\")","v":"Не реализовано"},{"$f":"IF(BJ9>0,\"Реализовано\",\"Не реализовано\")","v":"Не реализовано"},null,null,6,"Сегмент 6",0,0,0,0,0,0,0,0,0]
[null,null,null,null,null,null,null,null,null,null,null,null,null,null,null,null,null,null,null,null,null,null,null,null,null,null,null,null,null,null,null,null,null,2,"ббб","Сегмент 14",{"$f":"IF(MOD(ROW()-1,$R$5),\"\",IF(INDEX(D:D,(ROW()-1)/$R$5+1)=\"\",\"\",INDEX(D:D,(ROW()-1)/$R$5+1)))","v":3110.9939745281508},{"$f":"IF(MOD(ROW()-1,$R$5),\"\",IF(INDEX(E:E,(ROW()-1)/$R$5+1)=\"\",\"\",INDEX(E:E,(ROW()-1)/$R$5+1)))","v":0},{"$f":"IF(MOD(ROW()-1,$R$5),\"\",IF(INDEX(F:F,(ROW()-1)/$R$5+1)=\"\",\"\",INDEX(F:F,(ROW()-1)/$R$5+1)))","v":0},{"$f":"IF(MOD(ROW()-1,$R$5),\"\",IF(INDEX(Z:Z,(ROW()-1)/$R$5+1)=\"\",\"\",INDEX(Z:Z,(ROW()-1)/$R$5+1)))","v":1027.18},{"$f":"IF(MOD(ROW()-1,$R$5),\"\",IF(INDEX(H:H,(ROW()-1)/$R$5+1)=\"\",\"\",INDEX(H:H,(ROW()-1)/$R$5+1)))","v":0},{"$f":"IF(MOD(ROW()-1,$R$5),\"\",IF(INDEX(I:I,(ROW()-1)/$R$5+1)=\"\",\"\",INDEX(I:I,(ROW()-1)/$R$5+1)))","v":0},{"$f":"IF(MOD(ROW()-1,$R$5),\"\",IF(INDEX(J:J,(ROW()-1)/$R$5+1)=\"\",\"\",INDEX(J:J,(ROW()-1)/$R$5+1)))","v":925},0,0,335.37,null,null,null,null,null,"Доход",{"$f":"IF(AK11>0,AK11,0)","v":14619.822932805409},{"$f":"IF(AL12>0,AL12,$AU$2)","v":0},0,1967.18,0,0,22186.2,0,0,0,null,null,7,"Сегмент 7",0,0,0,0,0,0,0,0,0]
[null,null,null,null,null,null,null,null,null,null,null,null,null,null,null,null,null,null,null,null,null,null,null,null,null,null,null,null,null,null,null,null,null,"","","",{"$f":"AK9-AK9","v":0},{"$f":"AL9","v":0},0,1027.18,0,0,925,0,0,335.37,null,null,{"$f":"AH13","v":4},{"$f":"AI13","v":"ггг"},{"$f":"AJ13","v":"Сегмент 14"},"Факт",{"$f":"IF(BA11>0,\"Реализовано\",\"Не реализовано\")","v":"Реализовано"},null,null,null,null,null,null,{"$f":"IF(BH11>0,\"Реализовано\",\"Не реализовано\")","v":"Не реализовано"},{"$f":"IF(BI11>0,\"Реализовано\",\"Не реализовано\")","v":"Не реализовано"},{"$f":"IF(BJ11>0,\"Реализовано\",\"Не реализовано\")","v":"Не реализовано"},null,null,8,"Сегмент 8",0,0,0,0,0,0,0,0,0]
[null,null,null,null,null,null,null,null,null,null,null,null,null,null,null,null,null,null,null,null,null,null,null,null,null,null,null,null,null,null,null,null,null,3,"ввв","Сегмент 14",{"$f":"IF(MOD(ROW()-1,$R$5),\"\",IF(INDEX(D:D,(ROW()-1)/$R$5+1)=\"\",\"\",INDEX(D:D,(ROW()-1)/$R$5+1)))","v":14619.822932805409},{"$f":"IF(MOD(ROW()-1,$R$5),\"\",IF(INDEX(E:E,(ROW()-1)/$R$5+1)=\"\",\"\",INDEX(E:E,(ROW()-1)/$R$5+1)))","v":0},{"$f":"IF(MOD(ROW()-1,$R$5),\"\",IF(INDEX(F:F,(ROW()-1)/$R$5+1)=\"\",\"\",INDEX(F:F,(ROW()-1)/$R$5+1)))","v":0},{"$f":"IF(MOD(ROW()-1,$R$5),\"\",IF(INDEX(Z:Z,(ROW()-1)/$R$5+1)=\"\",\"\",INDEX(Z:Z,(ROW()-1)/$R$5+1)))","v":1967.18},{"$f":"IF(MOD(ROW()-1,$R$5),\"\",IF(INDEX(H:H,(ROW()-1)/$R$5+1)=\"\",\"\",INDEX(H:H,(ROW()-1)/$R$5+1)))","v":0},{"$f":"IF(MOD(ROW()-1,$R$5),\"\",IF(INDEX(I:I,(ROW()-1)/$R$5+1)=\"\",\"\",INDEX(I:I,(ROW()-1)/$R$5+1)))","v":0},{"$f":"IF(MOD(ROW()-1,$R$5),\"\",IF(INDEX(J:J,(ROW()-1)/$R$5+1)=\"\",\"\",INDEX(J:J,(ROW()-1)/$R$5+1)))","v":22186.2},0,0,0,null,null,null,null,null,"Доход",{"$f":"IF(AK13>0,AK13,0)","v":6715.0181536581531},{"$f":"IF(AL14>0,AL14,$AU$2)","v":0},0,4722.84,0,0,3480,0,0,0,null,null,9,"Сегмент 9",0,0,0,0,0,0,0,0,0]
[null,null,null,null,null,null,null,null,null,null,null,null,null,null,null,null,null,null,null,null,null,null,null,null,null,null,null,null,null,null,null,null,null,"","","",{"$f":"AK11-AK11","v":0},{"$f":"AL11","v":0},0,1967.18,0,0,22186.2,0,0,0,null,null,{"$f":"AH15","v":5},{"$f":"AI15","v":"ддд"},{"$f":"AJ15","v":"Сегмент 11"},"Факт",{"$f":"IF(BA13>0,\"Реализовано\",\"Не реализовано\")","v":"Реализовано"},null,null,null,null,null,null,{"$f":"IF(BH13>0,\"Реализовано\",\"Не реализовано\")","v":"Не реализовано"},{"$f":"IF(BI13>0,\"Реализовано\",\"Не реализовано\")","v":"Не реализовано"},{"$f":"IF(BJ13>0,\"Реализовано\",\"Не реализовано\")","v":"Не реализовано"},null,null,10,"Сегмент 10",0,0,0,0,0,0,0,0,0]
[null,null,null,null,null,null,null,null,null,null,null,null,null,null,null,null,null,null,null,null,null,null,null,null,null,null,null,null,null,null,null,null,null,4,"ггг","Сегмент 14",{"$f":"IF(MOD(ROW()-1,$R$5),\"\",IF(INDEX(D:D,(ROW()-1)/$R$5+1)=\"\",\"\",INDEX(D:D,(ROW()-1)/$R$5+1)))","v":6715.0181536581531},{"$f":"IF(MOD(ROW()-1,$R$5),\"\",IF(INDEX(E:E,(ROW()-1)/$R$5+1)=\"\",\"\",INDEX(E:E,(ROW()-1)/$R$5+1)))","v":0},{"$f":"IF(MOD(ROW()-1,$R$5),\"\",IF(INDEX(F:F,(ROW()-1)/$R$5+1)=\"\",\"\",INDEX(F:F,(ROW()-1)/$R$5+1)))","v":0},{"$f":"IF(MOD(ROW()-1,$R$5),\"\",IF(INDEX(Z:Z,(ROW()-1)/$R$5+1)=\"\",\"\",INDEX(Z:Z,(ROW()-1)/$R$5+1)))","v":4722.84},{"$f":"IF(MOD(ROW()-1,$R$5),\"\",IF(INDEX(H:H,(ROW()-1)/$R$5+1)=\"\",\"\",INDEX(H:H,(ROW()-1)/$R$5+1)))","v":0},{"$f":"IF(MOD(ROW()-1,$R$5),\"\",IF(INDEX(I:I,(ROW()-1)/$R$5+1)=\"\",\"\",INDEX(I:I,(ROW()-1)/$R$5+1)))","v":0},{"$f":"IF(MOD(ROW()-1,$R$5),\"\",IF(INDEX(J:J,(ROW()-1)/$R$5+1)=\"\",\"\",INDEX(J:J,(ROW()-1)/$R$5+1)))","v":3480},0,0,0,null,null,null,null,null,"Доход",{"$f":"IF(AK15>0,AK15,0)","v":42612.385727211171},{"$f":"IF(AL16>0,AL16,$AU$2)","v":0},0,15348.03,0,0,2989.4,0,0,0,null,null,11,"Сегмент 11",1,1,1,1,1,1,0,0,0]
[null,null,null,null,null,null,null,null,null,null,null,null,null,null,null,null,null,null,null,null,null,null,null,null,null,null,null,null,null,null,null,null,null,"","","",{"$f":"AK13-AK13","v":0},{"$f":"AL13","v":0},0,4722.84,0,0,3480,0,0,0,null,null,null,null,null,null,null,null,null,null,null,null,null,null,null,null,null,null,12,"Сегмент 12",0,0,0,0,0,0,0,0,0]
[null,null,null,null,null,null,null,null,null,null,null,null,null,null,null,null,null,null,null,null,null,null,null,null,null,null,null,null,null,null,null,null,null,5,"ддд",{"$f":"IF(MOD(ROW()-1,$R$5),\"\",IF(INDEX(V:V,(ROW()-1)/$R$5+1)=\"\",\"\",INDEX(V:V,(ROW()-1)/$R$5+1)))","v":"Сегмент 11"},{"$f":"IF(MOD(ROW()-1,$R$5),\"\",IF(INDEX(D:D,(ROW()-1)/$R$5+1)=\"\",\"\",INDEX(D:D,(ROW()-1)/$R$5+1)))","v":42612.385727211171},{"$f":"IF(MOD(ROW()-1,$R$5),\"\",IF(INDEX(E:E,(ROW()-1)/$R$5+1)=\"\",\"\",INDEX(E:E,(ROW()-1)/$R$5+1)))","v":0},{"$f":"IF(MOD(ROW()-1,$R$5),\"\",IF(INDEX(F:F,(ROW()-1)/$R$5+1)=\"\",\"\",INDEX(F:F,(ROW()-1)/$R$5+1)))","v":0},{"$f":"IF(MOD(ROW()-1,$R$5),\"\",IF(INDEX(Z:Z,(ROW()-1)/$R$5+1)=\"\",\"\",INDEX(Z:Z,(ROW()-1)/$R$5+1)))","v":15348.03},{"$f":"IF(MOD(ROW()-1,$R$5),\"\",IF(INDEX(H:H,(ROW()-1)/$R$5+1)=\"\",\"\",INDEX(H:H,(ROW()-1)/$R$5+1)))","v":0},0,2989.4,0,0,0,null,null,null,null,null,null,null,null,null,null,null,null,null,null,null,null,null,null,13,"Сегмент 13",0,0,0,0,0,0,0,0,0]
[null,null,null,null,null,null,null,null,null,null,null,null,null,null,null,null,null,null,null,null,null,null,null,null,null,null,null,null,null,null,null,null,null,"","","",{"$f":"AK15-AK15","v":0},{"$f":"AL15","v":0},0,15348.03,0,0,2989.4,0,0,0,null,null,null,null,null,null,null,null,null,null,null,null,null,null,null,null,null,null,14,"Сегмент 14",1,0,1,1,0,1,1,1,1]
[null,null,null,null,null,null,null,null,null,null,null,null,null,null,null,null,null,null,null,null,null,null,null,null,null,null,null,null,null,null,null,null,null,null,null,null,null,null,null,null,null,null,null,null,null,null,null,null,null,null,null,null,null,null,null,null,null,null,null,null,null,null,null,null,15,"Сегмент 15",0,0,0,0,0,0,0,0,0]
[null,null,null,null,null,null,null,null,null,null,null,null,null,null,null,null,null,null,null,null,null,null,null,null,null,null,null,null,null,null,null,null,null,null,null,null,null,null,null,null,null,null,null,null,null,null,null,null,null,null,null,null,null,null,null,null,null,null,null,null,null,null,null,null,16,"Сегмент 16",0,0,0,0,0,0,0,0,0]
[null,null,null,null,null,null,null,null,null,null,null,null,null,null,null,null,null,null,null,null,null,null,null,null,null,null,null,null,null,null,null,null,null,null,null,null,null,null,null,null,null,null,null,null,null,null,null,null,null,null,null,null,null,null,null,null,null,null,null,null,null,null,null,null,17,"Сегмент 17",0,0,0,0,0,0,0,0,0]
[null,null,null,null,null,null,null,null,null,null,null,null,null,null,null,null,null,null,null,null,null,null,null,null,null,null,null,null,null,null,null,null,null,null,null,null,null,null,null,null,null,null,null,null,null,null,null,null,null,null,null,null,null,null,null,null,null,null,null,null,null,null,null,null,18,"Сегмент 18",0,0,0,0,0,0,0,0,0]
[null,null,null,null,null,null,null,null,null,null,null,null,null,null,null,null,null,null,null,null,null,null,null,null,null,null,null,null,null,null,null,null,null,null,null,null,null,null,null,null,null,null,null,null,null,null,null,null,null,null,null,null,null,null,null,null,null,null,null,null,null,null,null,null,19,"Сегмент 19",0,0,0,0,0,0,0,0,0]
[null,null,null,null,null,null,null,null,null,null,null,null,null,null,null,null,null,null,null,null,null,null,null,null,null,null,null,null,null,null,null,null,null,null,null,null,null,null,null,null,null,null,null,null,null,null,null,null,null,null,null,null,null,null,null,null,null,null,null,null,null,null,null,null,20,"Сегмент 20",0,0,0,0,0,0,0,0,0]
[null,null,null,null,null,null,null,null,null,null,null,null,null,null,null,null,null,null,null,null,null,null,null,null,null,null,null,null,null,null,null,null,null,null,null,null,null,null,null,null,null,null,null,null,null,null,null,null,null,null,null,null,null,null,null,null,null,null,null,null,null,null,null,null,21,"Сегмент 21",0,0,0,0,0,0,0,0,0]
[null,null,null,null,null,null,null,null,null,null,null,null,null,null,null,null,null,null,null,null,null,null,null,null,null,null,null,null,null,null,null,null,null,null,null,null,null,null,null,null,null,null,null,null,null,null,null,null,null,null,null,null,null,null,null,null,null,null,null,null,null,null,null,null,22,"Сегмент 22",0,0,0,0,0,0,0,0,0]
[null,null,null,null,null,null,null,null,null,null,null,null,null,null,null,null,null,null,null,null,null,null,null,null,null,null,null,null,null,null,null,null,null,null,null,null,null,null,null,null,null,null,null,null,null,null,null,null,null,null,null,null,null,null,null,null,null,null,null,null,null,null,null,null,23,"Сегмент 23",0,0,0,0,0,0,0,0,0]
[null,null,null,null,null,null,null,null,null,null,null,null,null,null,null,null,null,null,null,null,null,null,null,null,null,null,null,null,null,null,null,null,null,null,null,null,null,null,null,null,null,null,null,null,null,null,null,null,null,null,null,null,null,null,null,null,null,null,null,null,null,null,null,null,24,"Сегмент 24",0,0,0,0,0,0,0,0,0]
[null,null,null,null,null,null,null,null,null,null,null,null,null,null,null,null,null,null,null,null,null,null,null,null,null,null,null,null,null,null,null,null,null,null,null,null,null,null,null,null,null,null,null,null,null,null,null,null,null,null,null,null,null,null,null,null,null,null,null,null,null,null,null,null,25,"Сегмент 25",0,0,0,0,0,0,0,0,0]
[null,null,null,null,null,null,null,null,null,null,null,null,null,null,null,null,null,null,null,null,null,null,null,null,null,null,null,null,null,null,null,null,null,null,null,null,null,null,null,null,null,null,null,null,null,null,null,null,null,null,null,null,null,null,null,null,null,null,null,null,null,null,null,null,26,"Сегмент 26",0,0,0,0,0,0,0,0,0]
[null,null,null,null,null,null,null,null,null,null,null,null,null,null,null,null,null,null,null,null,null,null,null,null,null,null,null,null,null,null,null,null,null,null,null,null,null,null,null,null,null,null,null,null,null,null,null,null,null,null,null,null,null,null,null,null,null,null,null,null,null,null,null,null,27,"Сегмент 27",0,0,0,0,0,0,0,0,0]
[null,null,null,null,null,null,null,null,null,null,null,null,null,null,null,null,null,null,null,null,null,null,null,null,null,null,null,null,null,null,null,null,null,null,null,null,null,null,null,null,null,null,null,null,null,null,null,null,null,null,null,null,null,null,null,null,null,null,null,null,null,null,null,null,28,"Сегмент 28",0,0,0,0,0,0,0,0,0]
[null,null,null,null,null,null,null,null,null,null,null,null,null,null,null,null,null,null,null,null,null,null,null,null,null,null,null,null,null,null,null,null,null,null,null,null,null,null,null,null,null,null,null,null,null,null,null,null,null,null,null,null,null,null,null,null,null,null,null,null,null,null,null,null,29,"Сегмент 29",0,0,0,0,0,0,0,0,0]
[null,null,null,null,null,null,null,null,null,null,null,null,null,null,null,null,null,null,null,null,null,null,null,null,null,null,null,null,null,null,null,null,null,null,null,null,null,null,null,null,null,null,null,null,null,null,null,null,null,null,null,null,null,null,null,null,null,null,null,null,null,null,null,null,30,"Сегмент 30",0,0,0,0,0,0,0,0,0]
[null,null,null,null,null,null,null,null,null,null,null,null,null,null,null,null,null,null,null,null,null,null,null,null,null,null,null,null,null,null,null,null,null,null,null,null,null,null,null,null,null,null,null,null,null,null,null,null,null,null,null,null,null,null,null,null,null,null,null,null,null,null,null,null,31,"Сегмент 31",0,0,0,0,0,0,0,0,0]
[null,null,null,null,null,null,null,null,null,null,null,null,null,null,null,null,null,null,null,null,null,null,null,null,null,null,null,null,null,null,null,null,null,null,null,null,null,null,null,null,null,null,null,null,null,null,null,null,null,null,null,null,null,null,null,null,null,null,null,null,null,null,null,null,32,"Сегмент 32",0,0,0,0,0,0,0,0,0]
[null,null,null,null,null,null,null,null,null,null,null,null,null,null,null,null,null,null,null,null,null,null,null,null,null,null,null,null,null,null,null,null,null,null,null,null,null,null,null,null,null,null,null,null,null,null,null,null,null,null,null,null,null,null,null,null,null,null,null,null,null,null,null,null,33,"Сегмент 33",0,0,0,0,0,0,0,0,0]
[null,null,null,null,null,null,null,null,null,null,null,null,null,null,null,null,null,null,null,null,null,null,null,null,null,null,null,null,null,null,null,null,null,null,null,null,null,null,null,null,null,null,null,null,null,null,null,null,null,null,null,null,null,null,null,null,null,null,null,null,null,null,null,null,34,"Сегмент 34",0,0,0,0,0,0,0,0,0]
[null,null,null,null,null,null,null,null,null,null,null,null,null,null,null,null,null,null,null,null,null,null,null,null,null,null,null,null,null,null,null,null,null,null,null,null,null,null,null,null,null,null,null,null,null,null,null,null,null,null,null,null,null,null,null,null,null,null,null,null,null,null,null,null,35,"Сегмент 35",0,0,0,0,0,0,0,0,0]
[null,null,null,null,null,null,null,null,null,null,null,null,null,null,null,null,null,null,null,null,null,null,null,null,null,null,null,null,null,null,null,null,null,null,null,null,null,null,null,null,null,null,null,null,null,null,null,null,null,null,null,null,null,null,null,null,null,null,null,null,null,null,null,null,36,"Сегмент 36",0,0,0,0,0,0,0,0,0]
[null,null,null,null,null,null,null,null,null,null,null,null,null,null,null,null,null,null,null,null,null,null,null,null,null,null,null,null,null,null,null,null,null,null,null,null,null,null,null,null,null,null,null,null,null,null,null,null,null,null,null,null,null,null,null,null,null,null,null,null,null,null,null,null,37,"Сегмент 37",0,0,0,0,0,0,0,0,0]
[null,null,null,null,null,null,null,null,null,null,null,null,null,null,null,null,null,null,null,null,null,null,null,null,null,null,null,null,null,null,null,null,null,null,null,null,null,null,null,null,null,null,null,null,null,null,null,null,null,null,null,null,null,null,null,null,null,null,null,null,null,null,null,null,38,"Сегмент 38",0,0,0,0,0,0,0,0,0]
[null,null,null,null,null,null,null,null,null,null,null,null,null,null,null,null,null,null,null,null,null,null,null,null,null,null,null,null,null,null,null,null,null,null,null,null,null,null,null,null,null,null,null,null,null,null,null,null,null,null,null,null,null,null,null,null,null,null,null,null,null,null,null,null,39,"Сегмент 39",0,0,0,0,0,0,0,0,0]
[null,null,null,null,null,null,null,null,null,null,null,null,null,null,null,null,null,null,null,null,null,null,null,null,null,null,null,null,null,null,null,null,null,null,null,null,null,null,null,null,null,null,null,null,null,null,null,null,null,null,null,null,null,null,null,null,null,null,null,null,null,null,null,null,40,"Сегмент 40",0,0,0,0,0,0,0,0,0]
[null,null,null,null,null,null,null,null,null,null,null,null,null,null,null,null,null,null,null,null,null,null,null,null,null,null,null,null,null,null,null,null,null,null,null,null,null,null,null,null,null,null,null,null,null,null,null,null,null,null,null,null,null,null,null,null,null,null,null,null,null,null,null,null,41,"Сегмент 41",0,0,0,0,0,0,0,0,0]
[null,null,null,null,null,null,null,null,null,null,null,null,null,null,null,null,null,null,null,null,null,null,null,null,null,null,null,null,null,null,null,null,null,null,null,null,null,null,null,null,null,null,null,null,null,null,null,null,null,null,null,null,null,null,null,null,null,null,null,null,null,null,null,null,42,"Сегмент 42",0,0,0,0,0,0,0,0,0]
[null,null,null,null,null,null,null,null,null,null,null,null,null,null,null,null,null,null,null,null,null,null,null,null,null,null,null,null,null,null,null,null,null,null,null,null,null,null,null,null,null,null,null,null,null,null,null,null,null,null,null,null,null,null,null,null,null,null,null,null,null,null,null,null,43,"Сегмент 43",0,0,0,0,0,0,0,0,0]
[null,null,null,null,null,null,null,null,null,null,null,null,null,null,null,null,null,null,null,null,null,null,null,null,null,null,null,null,null,null,null,null,null,null,null,null,null,null,null,null,null,null,null,null,null,null,null,null,null,null,null,null,null,null,null,null,null,null,null,null,null,null,null,null,44,"Сегмент 44",0,0,0,0,0,0,0,0,0]
[null,null,null,null,null,null,null,null,null,null,null,null,null,null,null,null,null,null,null,null,null,null,null,null,null,null,null,null,null,null,null,null,null,null,null,null,null,null,null,null,null,null,null,null,null,null,null,null,null,null,null,null,null,null,null,null,null,null,null,null,null,null,null,null,45,"Сегмент 45",0,0,0,0,0,0,0,0,0]
[null,null,null,null,null,null,null,null,null,null,null,null,null,null,null,null,null,null,null,null,null,null,null,null,null,null,null,null,null,null,null,null,null,null,null,null,null,null,null,null,null,null,null,null,null,null,null,null,null,null,null,null,null,null,null,null,null,null,null,null,null,null,null,null,46,"Сегмент 46",0,0,0,0,0,0,0,0,0]
[null,null,null,null,null,null,null,null,null,null,null,null,null,null,null,null,null,null,null,null,null,null,null,null,null,null,null,null,null,null,null,null,null,null,null,null,null,null,null,null,null,null,null,null,null,null,null,null,null,null,null,null,null,null,null,null,null,null,null,null,null,null,null,null,47,"Сегмент 47",0,0,0,0,0,0,0,0,0]
[null,null,null,null,null,null,null,null,null,null,null,null,null,null,null,null,null,null,null,null,null,null,null,null,null,null,null,null,null,null,null,null,null,null,null,null,null,null,null,null,null,null,null,null,null,null,null,null,null,null,null,null,null,null,null,null,null,null,null,null,null,null,null,null,48,"Сегмент 48",0,0,0,0,0,0,0,0,0]
[null,null,null,null,null,null,null,null,null,null,null,null,null,null,null,null,null,null,null,null,null,null,null,null,null,null,null,null,null,null,null,null,null,null,null,null,null,null,null,null,null,null,null,null,null,null,null,null,null,null,null,null,null,null,null,null,null,null,null,null,null,null,null,null,49,"Сегмент 49",0,0,0,0,0,0,0,0,0]
[null,null,null,null,null,null,null,null,null,null,null,null,null,null,null,null,null,null,null,null,null,null,null,null,null,null,null,null,null,null,null,null,null,null,null,null,null,null,null,null,null,null,null,null,null,null,null,null,null,null,null,null,null,null,null,null,null,null,null,null,null,null,null,null,50,"Сегмент 50",0,0,0,0,0,0,0,0,0]
[null,null,null,null,null,null,null,null,null,null,null,null,null,null,null,null,null,null,null,null,null,null,null,null,null,null,null,null,null,null,null,null,null,null,null,null,null,null,null,null,null,null,null,null,null,null,null,null,null,null,null,null,null,null,null,null,null,null,null,null,null,null,null,null,51,"Сегмент 51",0,0,0,0,0,0,0,0,0]
[null,null,null,null,null,null,null,null,null,null,null,null,null,null,null,null,null,null,null,null,null,null,null,null,null,null,null,null,null,null,null,null,null,null,null,null,null,null,null,null,null,null,null,null,null,null,null,null,null,null,null,null,null,null,null,null,null,null,null,null,null,null,null,null,52,"Сегмент 52",0,0,0,0,0,0,0,0,0]
[null,null,null,null,null,null,null,null,null,null,null,null,null,null,null,null,null,null,null,null,null,null,null,null,null,null,null,null,null,null,null,null,null,null,null,null,null,null,null,null,null,null,null,null,null,null,null,null,null,null,null,null,null,null,null,null,null,null,null,null,null,null,null,null,53,"Сегмент 53",0,0,0,0,0,0,0,0,0]
[null,null,null,null,null,null,null,null,null,null,null,null,null,null,null,null,null,null,null,null,null,null,null,null,null,null,null,null,null,null,null,null,null,null,null,null,null,null,null,null,null,null,null,null,null,null,null,null,null,null,null,null,null,null,null,null,null,null,null,null,null,null,null,null,54,"Сегмент 54",0,0,0,0,0,0,0,0,0]
[null,null,null,null,null,null,null,null,null,null,null,null,null,null,null,null,null,null,null,null,null,null,null,null,null,null,null,null,null,null,null,null,null,null,null,null,null,null,null,null,null,null,null,null,null,null,null,null,null,null,null,null,null,null,null,null,null,null,null,null,null,null,null,null,55,"Сегмент 55",0,0,0,0,0,0,0,0,0]
[null,null,null,null,null,null,null,null,null,null,null,null,null,null,null,null,null,null,null,null,null,null,null,null,null,null,null,null,null,null,null,null,null,null,null,null,null,null,null,null,null,null,null,null,null,null,null,null,null,null,null,null,null,null,null,null,null,null,null,null,null,null,null,null,56,"Сегмент 56",0,0,0,0,0,0,0,0,0]
[null,null,null,null,null,null,null,null,null,null,null,null,null,null,null,null,null,null,null,null,null,null,null,null,null,null,null,null,null,null,null,null,null,null,null,null,null,null,null,null,null,null,null,null,null,null,null,null,null,null,null,null,null,null,null,null,null,null,null,null,null,null,null,null,57,"Сегмент 57",0,0,0,0,0,0,0,0,0]
[null,null,null,null,null,null,null,null,null,null,null,null,null,null,null,null,null,null,null,null,null,null,null,null,null,null,null,null,null,null,null,null,null,null,null,null,null,null,null,null,null,null,null,null,null,null,null,null,null,null,null,null,null,null,null,null,null,null,null,null,null,null,null,null,58,"Сегмент 58",0,0,0,0,0,0,0,0,0]
[null,null,null,null,null,null,null,null,null,null,null,null,null,null,null,null,null,null,null,null,null,null,null,null,null,null,null,null,null,null,null,null,null,null,null,null,null,null,null,null,null,null,null,null,null,null,null,null,null,null,null,null,null,null,null,null,null,null,null,null,null,null,null,null,59,"Сегмент 59",0,0,0,0,0,0,0,0,0]
[null,null,null,null,null,null,null,null,null,null,null,null,null,null,null,null,null,null,null,null,null,null,null,null,null,null,null,null,null,null,null,null,null,null,null,null,null,null,null,null,null,null,null,null,null,null,null,null,null,null,null,null,null,null,null,null,null,null,null,null,null,null,null,null,60,"Сегмент 60",0,0,0,0,0,0,0,0,0]
[null,null,null,null,null,null,null,null,null,null,null,null,null,null,null,null,null,null,null,null,null,null,null,null,null,null,null,null,null,null,null,null,null,null,null,null,null,null,null,null,null,null,null,null,null,null,null,null,null,null,null,null,null,null,null,null,null,null,null,null,null,null,null,null,61,"Сегмент 61",0,0,0,0,0,0,0,0,0]
[null,null,null,null,null,null,null,null,null,null,null,null,null,null,null,null,null,null,null,null,null,null,null,null,null,null,null,null,null,null,null,null,null,null,null,null,null,null,null,null,null,null,null,null,null,null,null,null,null,null,null,null,null,null,null,null,null,null,null,null,null,null,null,null,62,"Сегмент 62",0,0,0,0,0,0,0,0,0]
[null,null,null,null,null,null,null,null,null,null,null,null,null,null,null,null,null,null,null,null,null,null,null,null,null,null,null,null,null,null,null,null,null,null,null,null,null,null,null,null,null,null,null,null,null,null,null,null,null,null,null,null,null,null,null,null,null,null,null,null,null,null,null,null,63,"Сегмент 63",0,0,0,0,0,0,0,0,0]
[null,null,null,null,null,null,null,null,null,null,null,null,null,null,null,null,null,null,null,null,null,null,null,null,null,null,null,null,null,null,null,null,null,null,null,null,null,null,null,null,null,null,null,null,null,null,null,null,null,null,null,null,null,null,null,null,null,null,null,null,null,null,null,null,64,"Сегмент 64",0,0,0,0,0,0,0,0,0]